bitfinex-derivatives/quotes_SOLF0:USTF0_20250212
["timestamp","ask_amount","ask_price","bid_price","bid_amount"]
[1739365944323,0.0333569,196.82,196.79,0.03334973]
[1739365944623,5.1138569,196.82,196.79,5.11454973]
[1739365945926,14.03903413,196.82,196.79,5.11454973]
[1739365946317,14.03903413,196.82,196.79,0.03334973]
[1739365946522,14.00647723,196.8,196.73,8.92517723]
[1739365946922,8.92517723,196.8,196.73,8.92517723]
[1739365947627,0.03807254,196.78,196.75,0.03319782]
[1739365947929,0.03807254,196.78,196.76,5.082]
[1739365950731,0.03807254,196.78,196.75,8.95837505]
[1739365950929,0.03807254,196.78,196.77,5.0818]
[1739365955335,0.03807254,196.78,196.77,14.00697723]
[1739365964840,7.254e-05,196.78,196.77,14.00697723]
[1739365965045,5.0795,196.86,196.82,5.0803]
[1739365965243,8.92517723,196.89,196.82,8.92517723]
[1739365965543,5.0789,196.89,196.84,14.00497723]
[1739365965744,5.0789,196.89,196.84,8.92517723]
[1739365966242,0.03781284,196.88,196.85,0.03760174]
[1739365966442,0.03781284,196.88,196.85,5.11710174]
[1739365967344,0.03781284,196.88,196.86,5.0794]
[1739365972142,0.03781284,196.88,196.87,5.0792]
[1739365974941,0.03781284,196.88,196.85,0.03760174]
[1739365975541,8.92517723,196.87,196.8,8.92517723]
[1739365975749,8.92517723,196.85,196.8,8.92517723]
[1739365976149,5.0801,196.84,196.8,8.92517723]
[1739365976349,8.92517723,196.87,196.8,8.92517723]
[1739365976543,8.92517723,196.89,196.82,8.92517723]
[1739365976753,0.03758736,196.85,196.82,8.95821232]
[1739365978152,0.03758736,196.85,196.82,14.03871232]
[1739365978450,0.03758736,196.85,196.82,8.95821232]
[1739365978744,0.03758736,196.85,196.82,0.03303509]
[1739365979150,8.96276459,196.85,196.82,0.03303509]
[1739365979649,14.04256459,196.85,196.82,0.03303509]
[1739365981151,8.92517723,196.83,196.79,5.0811]
[1739365981355,8.92517723,196.83,196.76,8.92517723]
[1739365981758,5.0806,196.82,196.77,5.0816]
[1739365982355,0.03419887,196.81,196.78,0.03634641]
[1739365982855,0.03419887,196.81,196.79,5.0811]
[1739365983255,0.03419887,196.81,196.8,5.081]
[1739365984559,0.03419887,196.81,196.78,0.03634641]
[1739365984753,0.03419887,196.81,196.78,5.11764641]
[1739365986957,14.0402761,196.81,196.78,5.11764641]
[1739365988657,14.0402761,196.81,196.78,0.03634641]
[1739365989155,5.11509887,196.81,196.78,0.03634641]
[1739365990161,0.03419887,196.81,196.78,8.96152364]
[1739365990754,0.03419887,196.81,196.79,5.0812]
[1739365990955,0.03419887,196.81,196.78,8.96152364]
[1739365992160,0.03419887,196.81,196.8,5.081]
[1739365992357,0.03419887,196.81,196.8,14.00617723]
[1739365992658,9.887e-05,196.81,196.8,14.00617723]
[1739366002969,9.887e-05,196.81,196.8,5.081]
[1739366005371,9.887e-05,196.81,196.78,8.96152364]
[1739366005574,5.08089887,196.81,196.78,5.11764641]
[1739366005775,8.9252761,196.81,196.78,0.03634641]
[1739366007077,5.081,196.8,196.78,0.03634641]
[1739366008677,14.00647723,196.79,196.78,0.03634641]
[1739366008883,8.92517723,196.79,196.7,8.92517723]
[1739366009179,8.92517723,196.76,196.7,8.92517723]
[1739366009880,8.92517723,196.74,196.68,8.92517723]
[1739366010075,8.92517723,196.74,196.71,0.03525919]
[1739366010481,14.00787723,196.74,196.71,0.03525919]
[1739366011172,15.59367723,196.74,196.69,5.0839]
[1739366011378,0.03613698,196.75,196.72,8.92517723]
[1739366011579,10.51097723,196.82,196.74,8.92517723]
[1739366011784,5.081,196.81,196.76,5.0819]
[1739366011975,10.51097723,196.82,196.77,8.92517723]
[1739366012179,1.5858,196.82,196.77,8.92517723]
[1739366012377,0.03555139,196.81,196.77,8.92517723]
[1739366012572,0.03555139,196.81,196.79,5.0811]
[1739366012974,0.03555139,196.81,196.77,8.92517723]
[1739366013181,0.03555139,196.81,196.8,5.081]
[1739366013482,0.91562083,196.85,196.79,8.92517723]
[1739366013781,0.03270118,196.82,196.78,13.94287404]
[1739366014275,5.0793,196.87,196.82,5.0804]
[1739366014677,0.03658947,196.86,196.82,5.0804]
[1739366015075,0.03658947,196.86,196.83,5.0802]
[1739366015783,0.03658947,196.86,196.85,5.0797]
[1739366016077,0.91580943,196.93,196.81,13.94287404]
[1739366016280,0.03900034,196.87,196.81,13.94287404]
[1739366018383,0.03900034,196.87,196.84,13.94287404]
[1739366018583,1.5374,196.93,196.84,13.94287404]
[1739366018782,0.03631777,196.87,196.84,13.94287404]
[1739366020186,0.03631777,196.87,196.86,5.0795]
[1739366028093,0.03631777,196.87,196.86,19.02237404]
[1739366032094,0.03631777,196.87,196.86,5.0795]
[1739366042110,0.03631777,196.87,196.77,10.1633]
[1739366042111,0.03631777,196.87,196.84,5.0799]
[1739366044611,5.0796,196.86,196.82,5.0803]
[1739366044809,8.92000773,196.85,196.79,8.92000773]
[1739366045010,10.39190773,196.85,196.77,8.92000773]
[1739366045303,1.5484,196.84,196.77,8.92000773]
[1739366045508,8.95464855,196.83,196.77,8.92000773]
[1739366046013,14.03504855,196.83,196.79,5.0813]
[1739366046607,0.03464082,196.83,196.79,8.92000773]
[1739366046803,0.03464082,196.83,196.79,14.00110773]
[1739366047612,5.11504082,196.83,196.79,14.00110773]
[1739366048111,0.03464082,196.83,196.79,8.92000773]
[1739366048312,5.0807,196.82,196.77,14.00160773]
[1739366048709,0.03668521,196.81,196.77,14.00160773]
[1739366050119,5.11748521,196.81,196.77,14.00160773]
[1739366051718,5.11748521,196.81,196.77,5.0816]
[1739366056320,0.03668521,196.81,196.73,13.94968474]
[1739366056515,5.0812,196.8,196.76,5.082]
[1739366057215,5.0812,196.8,196.77,5.0817]
[1739366061624,0.03668521,196.81,196.76,13.94968474]
[1739366061824,1.5484,196.84,196.76,13.94968474]
[1739366062129,0.03281214,196.8,196.76,13.94968474]
[1739366062726,0.03281214,196.8,196.79,5.0813]
[1739366068627,0.03281214,196.8,196.79,19.03098474]
[1739366068834,1.214e-05,196.8,196.79,19.03098474]
[1739366069429,17.05248474,196.92,196.79,19.03098474]
[1739366069430,5.079,196.88,196.84,5.0799]
[1739366070324,5.0801,196.84,196.8,5.0808]
[1739366070631,0.03801485,196.84,196.8,5.11595215]
[1739366075740,0.03801485,196.84,196.81,5.0807]
[1739366077637,0.03801485,196.84,196.81,8.92507529]
[1739366077838,0.03801485,196.84,196.83,8.92507529]
[1739366079040,0.03801485,196.84,196.83,14.00537529]
[1739366085745,0.03801485,196.84,196.81,5.0806]
[1739366085944,8.96309014,196.84,196.8,0.03515215]
[1739366087144,14.04319014,196.84,196.8,0.03515215]
[1739366088348,8.92507529,196.82,196.8,0.03515215]
[1739366089451,14.00557529,196.82,196.8,0.03515215]
[1739366089646,14.00557529,196.82,196.78,5.0815]
[1739366090750,8.92507529,196.8,196.78,5.0815]
[1739366091351,8.92507529,196.8,196.76,5.082]
[1739366091552,8.92507529,196.78,196.76,5.082]
[1739366093251,14.03873523,196.8,196.76,5.082]
[1739366098659,14.03873523,196.8,196.73,8.92507529]
[1739366098955,5.0813,196.79,196.73,8.92507529]
[1739366100146,5.0813,196.79,196.76,5.082]
[1739366100950,5.0819,196.77,196.74,5.0825]
[1739366102355,5.0814,196.79,196.75,5.0821]
[1739366102751,5.11569733,196.79,196.75,5.0821]
[1739366103055,5.11569733,196.79,196.73,8.92507529]
[1739366103256,5.11569733,196.79,196.76,5.082]
[1739366103458,0.03429733,196.79,196.77,8.92507529]
[1739366103657,0.03429733,196.79,196.78,5.0815]
[1739366104457,9.733e-05,196.79,196.78,5.0815]
[1739366104660,1.5869,196.89,196.78,8.92507529]
[1739366104958,1.5869,196.89,196.84,8.92507529]
[1739366105758,0.03525505,196.88,196.85,0.03469899]
[1739366106159,0.03525505,196.88,196.85,5.11419899]
[1739366107564,0.03525505,196.88,196.85,0.03469899]
[1739366109160,0.03525505,196.88,196.86,5.0795]
[1739366111964,0.03525505,196.88,196.87,5.0792]
[1739366117363,5.0773,196.95,196.91,5.0781]
[1739366117566,5.0773,196.95,196.91,14.00317529]
[1739366118061,5.0769,196.96,196.92,5.0779]
[1739366118262,12.02197529,196.98,196.92,5.0779]
[1739366118470,5.0757,197.01,196.97,8.92507529]
[1739366118659,8.92507529,197.03,196.97,8.92507529]
[1739366118865,0.03675305,197.01,196.97,8.92507529]
[1739366119167,0.03675305,197.01,196.97,14.03514548]
[1739366119373,0.03675305,197.01,196.97,8.95874548]
[1739366120764,0.03675305,197.01,196.97,0.03367019]
[1739366120968,8.92507529,196.99,196.97,0.03367019]
[1739366121664,5.11245305,197.01,196.97,0.03367019]
[1739366122068,0.03675305,197.01,196.97,0.03367019]
[1739366123069,0.03675305,197.01,196.98,5.0763]
[1739366124971,0.03675305,197.01,196.99,5.0761]
[1739366125672,0.03675305,197.01,197.0,5.0759]
[1739366130468,195.0,197.12,196.99,13.92524824]
[1739366130469,1.5624,197.11,196.99,13.92524824]
[1739366130664,1.5624,197.11,197.05,5.0745]
[1739366131370,5.0736,197.09,197.02,13.92524824]
[1739366131571,5.0736,197.09,197.06,5.10801109]
[1739366132471,0.0354091,197.1,197.06,0.03371109]
[1739366133473,0.0354091,197.1,197.09,5.0736]
[1739366134677,13.92524824,197.21,197.12,5.0726]
[1739366134877,0.91640956,197.2,197.12,5.0726]
[1739366135177,13.92524824,197.18,197.05,13.92524824]
[1739366135474,0.91640956,197.17,197.02,73.179508]
[1739366135675,2.44570956,197.17,197.02,73.179508]
[1739366135876,0.03250026,197.11,197.08,5.11174733]
[1739366136481,0.03250026,197.11,197.09,5.0736]
[1739366137178,0.03250026,197.11,197.08,0.03794733]
[1739366137479,0.03250026,197.11,197.08,5.11174733]
[1739366137673,5.10560026,197.11,197.08,0.03794733]
[1739366139572,5.0736,197.09,197.08,0.03794733]
[1739366141972,5.0742,197.07,197.02,5.0752]
[1739366142173,8.90311518,197.08,197.01,8.90311518]
[1739366142875,5.0747,197.05,197.01,13.97871518]
[1739366143178,5.11342636,197.05,197.01,5.11068174]
[1739366145885,5.0752,197.03,197.01,0.03508174]
[1739366146280,0.03872636,197.05,197.01,0.03508174]
[1739366146479,5.0754,197.02,197.01,0.03508174]
[1739366149783,0.03872636,197.05,197.01,0.03508174]
[1739366150687,5.075,197.04,197.01,0.03508174]
[1739366154483,0.03872636,197.05,197.01,0.03508174]
[1739366154683,5.11332636,197.05,197.01,0.03508174]
[1739366155083,5.11332636,197.05,197.01,5.11048174]
[1739366156189,0.03872636,197.05,197.01,0.03508174]
[1739366156386,0.03872636,197.05,197.02,5.0751]
[1739366156682,0.03872636,197.05,197.01,0.03508174]
[1739366156988,0.03872636,197.05,197.04,5.0748]
[1739366160591,1.5586,197.15,197.03,13.91586044]
[1739366160786,1.5586,197.15,197.08,5.0737]
[1739366161689,5.0728,197.12,197.09,0.03591755]
[1739366162195,0.03733488,197.13,197.09,0.03591755]
[1739366162394,5.0733,197.1,197.09,0.03591755]
[1739366163882,1.5119,197.12,197.0,13.91586044]
[1739366164088,5.0737,197.09,197.05,5.0745]
[1739366164889,5.0733,197.11,197.06,5.0741]
[1739366165097,0.03606582,197.09,197.05,0.03388614]
[1739366165693,0.03606582,197.09,197.08,5.0738]
[1739366168795,6.582e-05,197.09,197.08,5.0738]
[1739366170791,1.5482,197.19,197.15,5.072]
[1739366171400,1.5482,197.19,197.16,5.0716]
[1739366171894,1.58442961,197.19,197.16,5.10891889]
[1739366172502,0.03622961,197.19,197.16,5.10891889]
[1739366172701,0.03622961,197.19,197.16,0.03731889]
[1739366174404,0.03622961,197.19,197.17,5.0715]
[1739366175304,0.03622961,197.19,197.16,0.03731889]
[1739366175508,0.03622961,197.19,197.18,5.0712]
[1739366176108,5.0694,197.26,197.22,5.0702]
[1739366176303,1.5448,197.32,197.2,13.91586044]
[1739366176605,5.0692,197.27,197.21,5.0703]
[1739366177210,13.91586044,197.31,197.21,5.0703]
[1739366177409,5.10658134,197.26,197.22,5.10341859]
[1739366178308,0.03738134,197.26,197.22,0.03331859]
[1739366180512,0.03738134,197.26,197.25,5.0694]
[1739366183008,13.91586044,197.4,197.23,13.91586044]
[1739366183209,5.0669,197.35,197.28,13.91586044]
[1739366183517,13.91586044,197.37,197.25,13.91586044]
[1739366183716,0.9184376,197.36,197.25,13.91586044]
[1739366183916,5.0675,197.33,197.28,5.0687]
[1739366184215,0.03227097,197.32,197.29,0.03319694]
[1739366184415,0.03227097,197.32,197.29,5.10139694]
[1739366184818,0.03227097,197.32,197.29,0.03319694]
[1739366185009,0.03227097,197.32,197.31,5.0679]
[1739366185316,0.03227097,197.32,197.31,18.98376044]
[1739366185710,7.097e-05,197.32,197.31,18.98376044]
[1739366186217,1.6233,197.44,197.31,13.91586044]
[1739366186517,1.6233,197.44,197.3,13.91586044]
[1739366186518,5.0646,197.44,197.39,5.0658]
[1739366186716,1.508,197.46,197.35,13.91586044]
[1739366186916,6.5721,197.46,197.41,5.0653]
[1739366187114,1.508,197.46,197.38,13.91586044]
[1739366187519,0.03752847,197.44,197.43,5.0646]
[1739366189421,1.508,197.54,197.46,5.0639]
[1739366190019,5.0628,197.51,197.42,18.98086044]
[1739366190223,1.508,197.54,197.45,13.91586044]
[1739366190524,1.5554,197.57,197.49,13.91586044]
[1739366190715,0.03476556,197.51,197.48,5.09683065]
[1739366190913,0.91777772,197.59,197.48,5.09683065]
[1739366191117,5.0606,197.6,197.44,1.5441]
[1739366191316,5.06,197.62,197.52,13.91586044]
[1739366192114,0.03535503,197.59,197.55,0.037373]
[1739366192526,0.03535503,197.59,197.55,13.95323344]
[1739366193323,0.03535503,197.59,197.55,0.037373]
[1739366194223,0.03535503,197.59,197.57,13.91586044]
[1739366194620,0.03535503,197.59,197.55,5.098973]
[1739366194820,0.03535503,197.59,197.55,0.037373]
[1739366195826,5.061,197.58,197.55,0.037373]
[1739366196324,13.91586044,197.56,197.46,13.91586044]
[1739366197023,5.0621,197.54,197.46,13.91586044]
[1739366197620,0.03837207,197.52,197.48,0.03519673]
[1739366199928,5.10097207,197.52,197.48,0.03519673]
[1739366200432,0.03837207,197.52,197.48,0.03519673]
[1739366200629,5.0631,197.5,197.48,0.03519673]
[1739366201430,0.03837207,197.52,197.41,5.0651]
[1739366201626,0.03837207,197.52,197.37,22.15223756]
[1739366201827,22.15223756,197.53,197.37,22.15223756]
[1739366202026,22.15223756,197.53,197.4,5.0655]
[1739366202721,5.0643,197.46,197.45,0.03211694]
[1739366203126,5.0643,197.46,197.37,22.15223756]
[1739366203328,5.0643,197.46,197.44,0.03844293]
[1739366203729,5.0643,197.46,197.37,22.15223756]
[1739366203929,5.0643,197.46,197.43,0.03780199]
[1739366204125,0.03415755,197.47,197.43,0.03780199]
[1739366205934,0.03415755,197.47,197.46,5.0641]
[1739366208936,0.03415755,197.47,197.44,5.0644]
[1739366209433,0.03415755,197.47,197.43,0.03780199]
[1739366210039,5.0642,197.46,197.43,0.03780199]
[1739366210429,5.0644,197.45,197.4,5.0654]
[1739366211837,5.0644,197.45,197.41,0.0326714]
[1739366212446,5.09805755,197.47,197.41,5.0977714]
[1739366213642,0.03415755,197.47,197.43,5.0646]
[1739366214540,0.03415755,197.47,197.46,5.0641]
[1739366214941,0.03415755,197.47,197.41,0.0326714]
[1739366216042,0.03415755,197.47,197.45,5.0643]
[1739366216638,0.03415755,197.47,197.41,0.0326714]
[1739366216939,0.03415755,197.47,197.46,5.0641]
[1739366217636,5.755e-05,197.47,197.46,27.21633756]
[1739366217843,1.6186,197.55,197.52,5.0624]
[1739366218143,3.073,197.61,197.49,22.15223756]
[1739366218340,0.91773028,197.6,197.49,22.15223756]
[1739366218736,3.1876,197.61,197.49,22.15223756]
[1739366218938,0.03593347,197.56,197.49,22.15223756]
[1739366219240,0.03593347,197.56,197.53,0.03787116]
[1739366219442,0.03593347,197.56,197.4,22.15223756]
[1739366219643,1.5518,197.57,197.4,22.15223756]
[1739366220045,5.0625,197.52,197.4,22.15223756]
[1739366220542,0.03850578,197.48,197.45,5.0642]
[1739366220744,0.03850578,197.48,197.44,0.03731957]
[1739366224143,0.03850578,197.48,197.47,5.0638]
[1739366224839,5.78e-06,197.48,197.47,5.0638]
[1739366226647,1.5448,197.6,197.46,22.15223756]
[1739366226648,5.0597,197.64,197.57,5.061]
[1739366227037,4.7278,197.69,197.52,22.15223756]
[1739366227237,5.0591,197.66,197.6,5.0604]
[1739366227748,0.03624894,197.65,197.61,0.035516]
[1739366228147,5.09544894,197.65,197.61,0.035516]
[1739366228644,0.03624894,197.65,197.61,0.035516]
[1739366228842,5.0597,197.63,197.61,0.035516]
[1739366229150,22.15223756,197.64,197.49,22.15223756]
[1739366229349,5.0603,197.61,197.49,22.15223756]
[1739366229551,22.15223756,197.67,197.52,22.15223756]
[1739366229847,4.7278,197.69,197.52,22.15223756]
[1739366230049,0.91735364,197.68,197.52,22.15223756]
[1739366230252,0.03315682,197.62,197.59,0.03352976]
[1739366230451,0.03315682,197.62,197.59,5.09412976]
[1739366231348,0.03315682,197.62,197.59,0.03352976]
[1739366231858,0.03315682,197.62,197.61,5.0602]
[1739366232041,0.03315682,197.62,197.61,27.21243756]
[1739366232242,22.15223756,197.76,197.61,22.15223756]
[1739366232447,4.07832637,197.75,197.61,22.15223756]
[1739366232649,0.91712637,197.74,197.61,22.15223756]
[1739366232844,3.1612,197.75,197.61,22.15223756]
[1739366233043,3.1612,197.75,197.54,0.6799]
[1739366233044,0.91703052,197.74,197.54,0.6799]
[1739366233245,22.15223756,197.73,197.62,0.03205095]
[1739366233452,22.15223756,197.7,197.55,22.15223756]
[1739366233650,5.0587,197.67,197.66,0.03480165]
[1739366233950,22.15223756,197.7,197.6,5.0602]
[1739366234150,1.6142,197.66,197.53,3.0944]
[1739366234354,5.0593,197.65,197.57,5.061]
[1739366234558,1.6142,197.66,197.49,22.15223756]
[1739366234850,5.0598,197.63,197.56,5.0615]
[1739366235043,0.037968,197.59,197.56,5.09851243]
[1739366235648,0.037968,197.59,197.56,0.03701243]
[1739366236748,22.15223756,197.74,197.58,22.15223756]
[1739366236950,5.56959669,197.73,197.58,22.15223756]
[1739366237153,0.91719669,197.72,197.58,22.15223756]
[1739366237350,4.6524,197.73,197.58,22.15223756]
[1739366237547,0.91707213,197.72,197.58,22.15223756]
[1739366237950,0.91707213,197.72,197.53,0.68]
[1739366237951,0.03725743,197.67,197.63,0.03553424]
[1739366238251,5.0599,197.63,197.52,22.15223756]
[1739366238948,22.15223756,197.65,197.49,22.15223756]
[1739366239148,1.6165,197.62,197.49,22.15223756]
[1739366239361,0.03500076,197.59,197.55,0.03888947]
[1739366240855,0.03500076,197.59,197.57,5.061]
[1739366242054,0.03500076,197.59,197.55,5.10048947]
[1739366242259,0.03500076,197.59,197.55,0.03888947]
[1739366243061,0.03500076,197.59,197.56,5.0614]
[1739366245254,0.03500076,197.59,197.55,0.03888947]
[1739366245560,6.68220076,197.59,197.55,0.03888947]
[1739366247063,5.0611,197.58,197.55,0.03888947]
[1739366247359,1.62140076,197.59,197.46,63.17831354]
[1739366247659,1.5864,197.59,197.46,63.17831354]
[1739366248460,5.09752287,197.54,197.51,0.03748708]
[1739366248664,0.03542287,197.54,197.51,0.03748708]
[1739366249660,0.03542287,197.54,197.52,5.0625]
[1739366250759,0.03542287,197.54,197.51,0.03748708]
[1739366252061,2.287e-05,197.54,197.53,5.0623]
[1739366255761,2.287e-05,197.54,197.51,0.03748708]
[1739366255965,2.287e-05,197.54,197.51,5.09998708]
[1739366256864,2.287e-05,197.54,197.52,5.0625]
[1739366258467,2.287e-05,197.54,197.53,5.0623]
[1739366261869,2.287e-05,197.54,197.52,5.0625]
[1739366265864,2.287e-05,197.54,197.51,0.03748708]
[1739366266070,2.287e-05,197.54,197.41,1.589]
[1739366266275,25.16703756,197.54,197.37,106.26536079]
[1739366266772,5.0633,197.49,197.37,106.26536079]
[1739366266977,25.16703756,197.54,197.37,106.26536079]
[1739366267165,5.0636,197.48,197.44,5.0646]
[1739366267365,5.10177463,197.48,197.44,5.10141899]
[1739366268775,5.10177463,197.48,197.47,5.0638]
[1739366268776,0.03817463,197.48,197.47,5.0638]
[1739366269972,0.03817463,197.48,197.45,5.0642]
[1739366271280,0.03817463,197.48,197.44,0.03681899]
[1739366271873,5.0638,197.47,197.44,0.03681899]
[1739366273079,5.10177463,197.48,197.44,5.10131899]
[1739366274576,5.0638,197.47,197.44,5.10131899]
[1739366274879,0.03817463,197.48,197.44,0.03681899]
[1739366275274,5.0647,197.44,197.4,5.0656]
[1739366275673,5.0647,197.44,197.34,23.66003756]
[1739366276079,5.0644,197.45,197.41,5.0653]
[1739366276382,5.10280472,197.45,197.41,5.10270209]
[1739366276984,0.03840472,197.45,197.41,0.03740209]
[1739366277591,5.0646,197.44,197.41,0.03740209]
[1739366277992,5.0646,197.44,197.4,5.0655]
[1739366278591,0.03840472,197.45,197.35,13.86682657]
[1739366278795,6.5567,197.46,197.41,5.0651]
[1739366279388,0.03621486,197.45,197.42,0.03304167]
[1739366280290,0.03621486,197.45,197.44,5.0646]
[1739366281286,0.03621486,197.45,197.42,0.03304167]
[1739366281486,0.03621486,197.45,197.43,5.0648]
[1739366282493,0.03621486,197.45,197.42,0.03304167]
[1739366282698,0.03621486,197.45,197.44,5.0646]
[1739366283095,0.03621486,197.45,197.44,18.93142657]
[1739366283897,0.03621486,197.45,197.44,5.0646]
[1739366284395,1.486e-05,197.45,197.44,5.0646]
[1739366284596,1.5884,197.54,197.51,5.0628]
[1739366284899,1.5801,197.56,197.49,13.86682657]
[1739366285097,13.86682657,197.6,197.49,13.86682657]
[1739366285299,5.0609,197.59,197.53,5.062]
[1739366285599,5.0609,197.59,197.47,22.14849732]
[1739366285793,0.03855285,197.58,197.54,0.03344371]
[1739366286299,0.03855285,197.58,197.54,5.09534371]
[1739366287097,0.03855285,197.58,197.54,0.03344371]
[1739366288094,5.0617,197.55,197.54,0.03344371]
[1739366290802,0.03855285,197.58,197.44,22.14849732]
[1739366291100,0.03855285,197.58,197.43,3.0044]
[1739366291101,5.0626,197.52,197.43,3.0044]
[1739366291501,5.0626,197.52,197.47,5.0636]
[1739366291998,0.03894365,197.51,197.48,0.03858885]
[1739366292801,5.0633,197.49,197.48,0.03858885]
[1739366294295,5.10194365,197.51,197.48,0.03858885]
[1739366294710,0.03894365,197.51,197.48,0.03858885]
[1739366296107,0.03894365,197.51,197.5,5.063]
[1739366298410,4.365e-05,197.51,197.5,5.063]
[1739366299419,4.365e-05,197.51,197.5,27.21149732]
[1739366304815,5.06,197.62,197.58,5.0608]
[1739366306018,0.03891005,197.62,197.59,5.0607]
[1739366307216,0.03891005,197.62,197.6,5.0603]
[1739366307418,0.03891005,197.62,197.58,0.03669024]
[1739366307618,0.03891005,197.62,197.59,13.83756398]
[1739366308822,0.03891005,197.62,197.61,5.0602]
[1739366310628,1.005e-05,197.62,197.61,5.0602]
[1739366311522,15.40656398,197.77,197.6,13.83756398]
[1739366311820,15.40656398,197.77,197.65,13.83756398]
[1739366311821,5.0569,197.75,197.65,13.83756398]
[1739366312126,1.5833,197.76,197.65,13.83756398]
[1739366312520,1.5833,197.76,197.68,13.83756398]
[1739366312916,0.03330234,197.72,197.69,0.03285556]
[1739366316125,5.09070234,197.72,197.69,0.03285556]
[1739366317226,5.0579,197.7,197.69,0.03285556]
[1739366317426,0.03330234,197.72,197.63,5.0595]
[1739366317723,13.83756398,197.71,197.63,5.0595]
[1739366318522,13.83756398,197.71,197.65,0.03408994]
[1739366319225,5.0588,197.67,197.65,0.03408994]
[1739366320123,13.87205333,197.68,197.56,13.83756398]
[1739366320318,5.06,197.62,197.53,13.83756398]
[1739366321130,5.06,197.62,197.56,5.0614]
[1739366321431,0.03504833,197.59,197.56,0.03411815]
[1739366324130,5.09594833,197.59,197.56,0.03411815]
[1739366324331,1.52144833,197.59,197.56,0.03411815]
[1739366325930,6.58224833,197.59,197.56,0.03411815]
[1739366326631,5.0611,197.58,197.54,5.062]
[1739366326831,1.52144833,197.59,197.52,5.0624]
[1739366327030,1.4802,197.58,197.52,5.0624]
[1739366327226,5.0619,197.55,197.47,13.83756398]
[1739366327630,5.0619,197.55,197.44,3.1655]
[1739366327835,0.03642072,197.53,197.49,0.032117]
[1739366328334,0.03642072,197.53,197.5,13.83756398]
[1739366329237,0.03642072,197.53,197.52,5.0625]
[1739366332337,2.072e-05,197.53,197.52,5.0625]
[1739366333441,1.5132,197.61,197.5,13.83756398]
[1739366333649,1.4923,197.64,197.45,0.9304]
[1739366333650,1.4923,197.64,197.57,13.83756398]
[1739366334149,1.4923,197.64,197.59,5.0607]
[1739366334744,0.03729409,197.63,197.6,0.03683092]
[1739366334943,0.03729409,197.63,197.6,5.09723092]
[1739366335144,0.03729409,197.63,197.6,0.03683092]
[1739366335647,0.03729409,197.63,197.62,5.06]
[1739366342147,9.409e-05,197.63,197.62,5.06]
[1739366342345,114.07756398,197.77,197.62,5.06]
[1739366342650,4.0677092,197.75,197.68,5.0584]
[1739366342849,3.1508,197.75,197.68,5.0584]
[1739366343549,0.03636459,197.73,197.7,0.03848639]
[1739366344050,5.09356459,197.73,197.7,0.03848639]
[1739366345753,0.03636459,197.73,197.7,0.03848639]
[1739366345951,0.03636459,197.73,197.7,5.09628639]
[1739366346257,0.03636459,197.73,197.7,0.03848639]
[1739366346444,0.03636459,197.73,197.7,13.87605037]
[1739366347352,0.03636459,197.73,197.71,5.0576]
[1739366347656,0.03636459,197.73,197.7,13.87605037]
[1739366348154,0.03636459,197.73,197.72,5.0574]
[1739366352959,2.9644,197.8,197.75,5.0565]
[1739366353360,2.9644,197.8,197.74,13.83756398]
[1739366354160,0.03738523,197.79,197.75,0.03882337]
[1739366355563,0.03738523,197.79,197.75,5.09532337]
[1739366356056,0.03738523,197.79,197.75,0.03882337]
[1739366356262,0.03738523,197.79,197.77,5.0559]
[1739366356957,0.03738523,197.79,197.75,5.09522337]
[1739366357163,0.03738523,197.79,197.75,0.03882337]
[1739366357465,5.0563,197.77,197.75,0.03882337]
[1739366358058,5.0571,197.74,197.69,5.058]
[1739366358268,13.83756398,197.74,197.62,13.83756398]
[1739366358463,1.5395,197.73,197.62,13.83756398]
[1739366359162,0.03397536,197.69,197.66,0.03897726]
[1739366360257,5.09217536,197.69,197.66,0.03897726]
[1739366360460,0.03397536,197.69,197.66,0.03897726]
[1739366360961,5.0584,197.68,197.66,0.03897726]
[1739366361568,0.03397536,197.69,197.66,0.03897726]
[1739366362363,0.03397536,197.69,197.66,5.09777726]
[1739366364166,0.03397536,197.69,197.68,18.89596398]
[1739366364377,6.5768,197.76,197.68,13.83756398]
[1739366364567,6.5768,197.76,197.71,13.83756398]
[1739366364970,5.0561,197.78,197.71,13.83756398]
[1739366365159,2.9989,197.81,197.74,13.83756398]
[1739366365563,0.03415869,197.79,197.76,0.03530558]
[1739366368372,0.03415869,197.79,197.76,5.09160558]
[1739366368573,0.03415869,197.79,197.76,0.03530558]
[1739366369173,0.03415869,197.79,197.78,5.0559]
[1739366370069,0.03415869,197.79,197.76,5.09150558]
[1739366370269,0.03415869,197.79,197.76,0.03530558]
[1739366371674,0.03415869,197.79,197.76,5.09160558]